Workbook

Sheet Лист1
A1: Наименование блюд | B1: Выход,г | C1: Белки, г | D1: Жиры, г | E1: Углеводы, г | F1: Калорийность, ккал | G1: Витамин B1, мг | H1: Витамин С, мг | I1: Витамин А, мг | J1: Витамин Е, мг | K1: Ca, мг | L1: P, мг | M1: Mg, мг | N1: Fe, мг
A2: 1-ая неделя
A3: 1 день
A4: Салат из моркови с яблоками | B4: 60 | C4: 0.64 | D4: 0.10 | E4: 5.11 | F4: 23.94 | G4: 0.03 | H4: 2.63 | I4: 0.00 | J4: 0.21 | K4: 14.40 | L4: 26.72 | M4: 18.23 | N4: 0.64
A5: Шницель куриный | B5: 90 | C5: 8.750 | D5: 10.600 | E5: 8.130 | F5: 198 | G5: 0.180 | H5: 0.810 | I5: 12.42 | J5: 61.470 | K5: 51.642 | L5: 69.300 | M5: 19.980 | N5: 3.240
A6: Макаронные изделия отварные с маслом сливочным | B6: 150/5 | C6: 5.12 | D6: 4.53 | E6: 31.99 | F6: 189.30 | G6: 0.06 | H6: 0.00 | I6: 20.00 | J6: 0.82 | K6: 12.39 | L6: 38.67 | M6: 8.62 | N6: 0.86
A7: Компот из сухофруктов (75С) | B7: 200 | C7: 0.66 | D7: 0.09 | E7: 22.03 | F7: 92.90 | G7: 0.02 | H7: 0.73 | I7: 0.00 | J7: 0.51 | K7: 32.48 | L7: 23.44 | M7: 17.46 | N7: 0.70
A8: Печенье | B8: 40 | C8: 3.70 | D8: 4.70 | E8: 4.85 | F8: 21.50 | G8: 0.07 | H8: 0.00 | I8: 0.00 | J8: 1.85 | K8: 13.00 | L8: 42.00 | M8: 15.00 | N8: 0.70
A9: Хлеб ржаной | B9: 20 | C9: 1.32 | D9: 0.24 | E9: 7.92 | F9: 39.60 | G9: 0.03 | H9: 0.00 | I9: 0.00 | J9: 0.28 | K9: 5.80 | L9: 30.00 | M9: 9.40 | N9: 0.78
A10: Итого: | B10: 565 | C10: =SUM(C4:C9) -> 20.19 | D10: =SUM(D4:D9) -> 20.26 | E10: 80.03 | F10: 565.24 | G10: 0.38 | H10: 4.16 | I10: 32.42 | J10: 65.14 | K10: 129.71 | L10: 230.12 | M10: 88.69 | N10: 6.92

Sheet Лист2
A1: Наименование блюд | B1: Выход,г | C1: Белки, г | D1: Жиры, г | E1: Углеводы, г | F1: Калорийность, ккал | G1: Витамин B1, мг | H1: Витамин С, мг | I1: Витамин А, мг | J1: Витамин Е, мг | K1: Ca, мг | L1: P, мг | M1: Mg, мг | N1: Fe, мг
A2: 2 день
A3: Сыр порционно | B3: 10 | C3: 2.63 | D3: 2.66 | E3: 0.00 | F3: 34.33 | G3: 0.00 | H3: 0.07 | I3: 21.00 | J3: 0.04 | K3: 100.00 | L3: 60.00 | M3: 5.50 | N3: 0.07
A4: Гуляш из говядины | B4: 50/50 | C4: 9.45 | D4: 10.71 | E4: 22.89 | F4: 221.00 | G4: 0.03 | H4: 0.92 | J4: 2.61 | K4: 21.81 | L4: 154.15 | M4: 22.03 | N4: 3.06
A5: Каша гречневая рассыпчатая с маслом сливочным | B5: 150/5 | C5: 4.61 | D5: 6.32 | E5: 27.79 | F5: 207.00 | G5: 0.21 | H5: 0.00 | I5: 20.00 | J5: 0.45 | K5: 25.19 | L5: 208.85 | M5: 140.52 | N5: 4.72
A6: Чай с сахаром, с лимоном | B6: 185/10/5 | C6: 0.13 | D6: 0.02 | E6: 10.20 | F6: 42.00 | H6: 2.83 | J6: 0.01 | K6: 14.05 | L6: 4.40 | M6: 2.40 | N6: 0.34
A7: Хлеб пшеничный | B7: 50 | C7: 3.04 | D7: 0.32 | E7: 19.68 | F7: 94.00 | G7: 0.04 | H7: 0.00 | I7: 0.00 | J7: 0.44 | K7: 8.00 | L7: 26.00 | M7: 5.60 | N7: 0.44
A8: Итого: | B8: 510 | C8: =C3+C4+C5+C6+C7 -> 19.86 | D8: =D3+D4+D5+D6+D7 -> 20.03 | E8: 80.56 | F8: 598.33 | G8: 0.29 | H8: 3.82 | I8: 41.00 | J8: 3.55 | K8: 169.05 | L8: 453.40 | M8: 176.05 | N8: 8.63

Sheet Лист3
A1: Наименование блюд | B1: Выход,г | C1: Белки, г | D1: Жиры, г | E1: Углеводы, г | F1: Калорийность, ккал | G1: Витамин B1, мг | H1: Витамин С, мг | I1: Витамин А, мг | J1: Витамин Е, мг | K1: Ca, мг | L1: P, мг | M1: Mg, мг | N1: Fe, мг
A2: 3 день
A3: Птица запеченная с томатным соусом | B3: 90/20 | C3: 12.00 | D3: 10.04 | E3: 8.60 | F3: 195.10 | G3: 0.10 | H3: 3.04 | I3: 64.92 | J3: 1.70 | K3: 47.55 | L3: 162.01 | M3: 24.73 | N3: 1.65
A4: Рис отварной рассыпчатый с маслом сливочным | B4: 150/5 | C4: 3.74 | D4: 7.02 | E4: 39.23 | F4: 209.00 | G4: 0.03 | H4: 0.00 | I4: 20.00 | J4: 0.33 | K4: 2.57 | L4: 62.45 | M4: 16.34 | N4: 0.54
A5: Чай с сахаром | B5: 190/10 | C5: 0.07 | D5: 0.02 | E5: 10.00 | F5: 40.00 | H5: 0.03 | K5: 10.95 | L5: 2.80 | M5: 1.40 | N5: 0.26
A6: Хлеб пшеничный | B6: 20 | C6: 1.520 | D6: 0.160 | E6: 9.840 | F6: 47 | G6: 0.022 | H6: 0 | I6: 0 | J6: 0.220 | K6: 4.000 | L6: 13.000 | M6: 2.800 | N6: 0.220
A7: Хлеб ржаной | B7: 20 | C7: 1.32 | D7: 0.24 | E7: 7.92 | F7: 39.60 | G7: 0.03 | H7: 0.00 | I7: 0.00 | J7: 0.28 | K7: 5.80 | L7: 30.00 | M7: 9.40 | N7: 0.78
A8: Итого: | B8: 505 | C8: =SUM(C3:C7) -> 18.65 | D8: =SUM(D3:D7) -> 17.48 | E8: 75.59 | F8: 530.70 | G8: 0.19 | H8: 3.07 | I8: 84.92 | J8: 2.53 | K8: 70.87 | L8: 270.26 | M8: 54.67 | N8: 3.45

Sheet Лист4
A1: Наименование блюд | B1: Выход,г | C1: Белки, г | D1: Жиры, г | E1: Углеводы, г | F1: Калорийность, ккал | G1: Витамин B1, мг | H1: Витамин С, мг | I1: Витамин А, мг | J1: Витамин Е, мг | K1: Ca, мг | L1: P, мг | M1: Mg, мг | N1: Fe, мг
A2: 4 день
A3: Салат из белокочанной капусты | B3: 60 | C3: 0.79 | D3: 1.95 | E3: 3.88 | F3: 36.24 | G3: 0.01 | H3: 10.26 | I3: 0.00 | J3: 5.03 | K3: 14.98 | L3: 16.98 | M3: 9.05 | N3: 0.28
A4: Рыба, тушенная в томате с овощами | B4: 50/50 | C4: 9.15 | D4: 5.62 | E4: 7.80 | F4: 105.00 | G4: 0.05 | H4: 3.73 | I4: 5.82 | J4: 2.52 | K4: 39.07 | L4: 162.19 | M4: 48.53 | N4: 0.85
A5: Пюре картофельное с маслом сливочным | B5: 150/5 | C5: 3.10 | D5: 8.43 | E5: 20.51 | F5: 170.25 | G5: 0.14 | H5: 18.16 | I5: 20.00 | J5: 0.23 | K5: 38.18 | L5: 88.10 | M5: 27.75 | N5: 1.02
A6: Компот из свежих яблок (75 С) | B6: 200 | C6: 0.16 | D6: 0.16 | E6: 13.91 | F6: 58.74 | G6: 0.01 | H6: 0.90 | I6: 0.00 | J6: 0.08 | K6: 14.18 | L6: 4.40 | M6: 5.14 | N6: 0.95
A7: Хлеб пшеничный | B7: 20 | C7: 1.520 | D7: 0.160 | E7: 9.840 | F7: 47 | G7: 0.022 | H7: 0 | I7: 0 | J7: 0.220 | K7: 4.000 | L7: 13.000 | M7: 2.800 | N7: 0.220
A8: Хлеб ржаной | B8: 20 | C8: 1.32 | D8: 0.24 | E8: 7.92 | F8: 39.60 | G8: 0.03 | H8: 0.00 | I8: 0.00 | J8: 0.28 | K8: 5.80 | L8: 30.00 | M8: 9.40 | N8: 0.78
A9: Итого: | B9: 555 | C9: =C3+C4+C5+C6+C7+C8 -> 16.04 | D9: 16.56 | E9: 63.86 | F9: 456.83 | G9: 0.27 | H9: 33.05 | I9: 25.82 | J9: 8.37 | K9: 116.21 | L9: 314.67 | M9: 102.67 | N9: 4.10

Sheet Лист5
A1: Наименование блюд | B1: Выход,г | C1: Белки, г | D1: Жиры, г | E1: Углеводы, г | F1: Калорийность, ккал | G1: Витамин B1, мг | H1: Витамин С, мг | I1: Витамин А, мг | J1: Витамин Е, мг | K1: Ca, мг | L1: P, мг | M1: Mg, мг | N1: Fe, мг
A2: 5 день
A3: Плоды и ягоды свежие (яблоки) | B3: 100 | C3: 0.40 | D3: 0.40 | E3: 9.80 | F3: 47.00 | G3: 0.03 | H3: 10.00 | J3: 0.20 | K3: 16.00 | L3: 11.00 | M3: 9.00 | N3: 2.20
A4: Сыр порционно | B4: 15 | C4: 3.05 | D4: 3.95 | E4: 0.00 | F4: 51.50 | G4: 0.01 | H4: 0.11 | I4: 31.50 | J4: 0.06 | K4: 150.00 | L4: 90.00 | M4: 8.25 | N4: 0.11
A5: Пельмени мясные отварные с маслом сливочным | B5: 170/5 | C5: 13.04 | D5: 15.868 | E5: 40.822 | F5: 346 | G5: 0.145 | H5: 0.333 | I5: 38.547 | J5: 0.007264957265 | K5: 21.021 | L5: 109.791 | M5: 31.778 | N5: 0.831
A6: Чай с сахаром, с лимоном | B6: 185/10/5 | C6: 0.13 | D6: 0.02 | E6: 10.20 | F6: 42.00 | H6: 2.83 | J6: 0.01 | K6: 14.05 | L6: 4.40 | M6: 2.40 | N6: 0.34
A7: Хлеб пшеничный | B7: 40 | C7: 3.04 | D7: 0.32 | E7: 19.68 | F7: 94.00 | G7: 0.04 | H7: 0.00 | I7: 0.00 | J7: 0.44 | K7: 8.00 | L7: 26.00 | M7: 5.60 | N7: 0.44
A8: Итого: | B8: 530 | C8: =SUM(C3:C7) -> 19.66 | D8: 20.55 | E8: 80.50 | F8: 580.75 | G8: 0.22 | H8: 13.27 | I8: 70.05 | J8: 0.72 | K8: 209.07 | L8: 241.19 | M8: 57.03 | N8: 3.92

Sheet Лист6
A1: Наименование блюд | B1: Выход,г | C1: Белки, г | D1: Жиры, г | E1: Углеводы, г | F1: Калорийность, ккал | G1: Витамин B1, мг | H1: Витамин С, мг | I1: Витамин А, мг | J1: Витамин Е, мг | K1: Ca, мг | L1: P, мг | M1: Mg, мг | N1: Fe, мг
A2: 6 день
A3: Салат из моркови с сахаром | B3: 60 | C3: 0.74 | D3: 0.06 | E3: 6.58 | F3: 49.02 | G3: 0.03 | H3: 2.02 | I3: 0.00 | J3: 8.04 | K3: 15.46 | L3: 31.66 | M3: 21.63 | N3: 0.40
A4: Котлеты говяжьи | B4: 90 | C4: 10.18 | D4: 13.25 | E4: 11.77 | F4: 183.40 | G4: 0.05 | H4: 0.00 | I4: 0.00 | J4: 3.11 | K4: 9.38 | L4: 150.08 | M4: 27.54 | N4: 2.41
A5: Гороховое пюре с маслом сливочным | B5: 150/5 | C5: 5.62 | D5: 5.04 | E5: 34.99 | F5: 208.50 | G5: 0.50 | H5: 0.00 | I5: 20.00 | J5: 0.50 | K5: 94.11 | L5: 212.33 | M5: 61.70 | N5: 4.69
A6: Чай с мармеладом | B6: 190/10 | C6: 0.09 | D6: 0.02 | E6: 11.91 | F6: 48.15 | H6: 0.03 | K6: 11.25 | L6: 2.95 | M6: 1.70 | N6: 0.29
A7: Хлеб пшеничный | B7: 20 | C7: 1.520 | D7: 0.160 | E7: 9.840 | F7: 47 | G7: 0.022 | H7: 0 | I7: 0 | J7: 0.220 | K7: 4.000 | L7: 13.000 | M7: 2.800 | N7: 0.220
A8: Хлеб ржаной | B8: 20 | C8: 1.320 | D8: 0.24 | E8: 7.920 | F8: 40 | G8: 0.034 | H8: 0 | I8: 0 | J8: 0.280 | K8: 5.800 | L8: 30.000 | M8: 9.400 | N8: 0.780
A9: Итого: | B9: 545 | C9: =C3+C4+C5+C6+C7+C8 -> 19.47 | D9: =D3+D4+D5+D6+D7+D8 -> 18.77 | E9: 83.01 | F9: 575.67 | G9: 0.64 | H9: 2.05 | I9: 20.00 | J9: 12.15 | K9: 139.99 | L9: 440.02 | M9: 124.76 | N9: 8.79

Sheet Лист7
A1: Наименование блюд | B1: Выход,г | C1: Белки, г | D1: Жиры, г | E1: Углеводы, г | F1: Калорийность, ккал | G1: Витамин B1, мг | H1: Витамин С, мг | I1: Витамин А, мг | J1: Витамин Е, мг | K1: Ca, мг | L1: P, мг | M1: Mg, мг | N1: Fe, мг
A2: 2-ая неделя
A3: 1 день
A4: Плоды и ягоды свежие (апельсин) | B4: 100 | C4: 0.8 | D4: 0.2 | E4: 8.05 | F4: 43 | G4: 0.04 | H4: 60 | J4: 0.2 | K4: 34 | L4: 23 | M4: 13 | N4: 0.3
A5: Биточки рыбные | B5: 90 | C5: 9.680 | D5: 8.380 | E5: 4.156 | F5: 156.40 | G5: 0.072 | H5: 0.594 | I5: 8.460 | J5: 4.518 | K5: 64.692 | L5: 166.914 | M5: 37.026 | N5: 1.314
A6: Рис отварной рассыпчатый с маслом сливочным | B6: 150/5 | C6: 3.740 | D6: 7.020 | E6: 39.230 | F6: 209.00 | G6: 0.026 | H6: 0.000 | I6: 20.000 | J6: 0.330 | K6: 2.570 | L6: 62.450 | M6: 16.335 | N6: 0.540
A7: Чай с сахаром,с яблоком | B7: 180/10/10 | C7: 0.11 | D7: 0.06 | E7: 10.99 | F7: 45.05 | G7: 0.00 | H7: 1.03 | J7: 0.02 | K7: 12.70 | L7: 3.90 | M7: 2.30 | N7: 0.50
A8: Хлеб ржаной | B8: 20 | C8: 1.320 | D8: 0.240 | E8: 7.920 | F8: 40 | G8: 0.034 | H8: 0 | I8: 0 | J8: 0.280 | K8: 5.800 | L8: 30.000 | M8: 9.400 | N8: 0.780
A9: Итого: | B9: 565 | C9: =SUM(C4:C8) -> 15.65 | D9: =SUM(D4:D8) -> 15.90 | E9: 70.35 | F9: 493.05 | G9: 0.17 | H9: 61.62 | I9: 28.46 | J9: 5.35 | K9: 119.76 | L9: 286.26 | M9: 78.06 | N9: 3.43

Sheet Лист8
A1: Наименование блюд | B1: Выход,г | C1: Белки, г | D1: Жиры, г | E1: Углеводы, г | F1: Калорийность, ккал | G1: Витамин B1, мг | H1: Витамин С, мг | I1: Витамин А, мг | J1: Витамин Е, мг | K1: Ca, мг | L1: P, мг | M1: Mg, мг | N1: Fe, мг
A2: 2 день
A3: Бутерброд с сыром (45/15) | B3: 60 | C3: 7.26 | D3: 4.35 | E3: 22.14 | F3: 157.25 | G3: 0.05 | H3: 0.11 | I3: 31.50 | J3: 0.56 | K3: 159.00 | L3: 119.25 | M3: 14.55 | N3: 0.60
A4: Овощи тушеные с мясом | B4: 50/150 | C4: 8.01 | D4: 13.78 | E4: 22.34 | F4: 211.35 | G4: 0.11 | H4: 18.78 | I4: 39.00 | J4: 0.00 | K4: 68.94 | L4: 172.79 | M4: 38.24 | N4: 2.68
A5: Чай "Витаминный" с ягодами | B5: 185/10/5 | C5: 0.24 | D5: 0.09 | E5: 12.42 | F5: 54.20 | G5: 0.00 | H5: 50.03 | I5: 0.00 | J5: 0.19 | K5: 13.95 | L5: 3.65 | M5: 2.25 | N5: 0.41
A6: Хлеб пшеничный | B6: 35
A7: Хлеб ржаной | B7: 30
A8: Итого: | B8: 525

Sheet Лист9
A1: Наименование блюд | B1: Выход,г | C1: Белки, г | D1: Жиры, г | E1: Углеводы, г | F1: Калорийность, ккал | G1: Витамин B1, мг | H1: Витамин С, мг | I1: Витамин А, мг | J1: Витамин Е, мг | K1: Ca, мг | L1: P, мг | M1: Mg, мг | N1: Fe, мг
A2: 3 день
A3: Салат из свеклы отварной | B3: 60 | C3: 0.84 | D3: 3.61 | E3: 4.96 | F3: 55.68 | G3: 0.01 | H3: 3.99 | I3: 0.00 | J3: 1.62 | K3: 21.28 | L3: 24.38 | M3: 12.42 | N3: 0.79
A4: Котлеты из мяса кур | B4: 90 | C4: 11.85 | D4: 8.06 | E4: 18.53 | F4: 198.00 | G4: 0.18 | H4: 0.81 | I4: 12.42 | J4: 61.47 | K4: 51.64 | L4: 69.30 | M4: 19.98 | N4: 3.24
A5: Пюре картофельное с маслом сливочным | B5: 150/5 | C5: 3.13 | D5: 8.43 | E5: 20.51 | F5: 170.25 | G5: 0.14 | H5: 18.16 | I5: 20.00 | J5: 0.23 | K5: 38.18 | L5: 88.10 | M5: 27.75 | N5: 1.02
A6: Чай с сахаром | B6: 190/10 | C6: 0.07 | D6: 0.02 | E6: 10.00 | F6: 40.00 | H6: 0.03 | K6: 10.95 | L6: 2.80 | M6: 1.40 | N6: 0.26
A7: Хлеб пшеничный | B7: 35 | C7: 2.660 | D7: 0.280 | E7: 17.220 | F7: 82 | G7: 0.039 | H7: 0 | I7: 0 | J7: 0.385 | K7: 7.000 | L7: 22.750 | M7: 4.900 | N7: 0.385
A8: Хлеб ржаной | B8: 25 | C8: 1.650 | D8: 0.300 | E8: 9.900 | F8: 50 | G8: 0.043 | H8: 0 | I8: 0 | J8: 0.350 | K8: 7.250 | L8: 37.500 | M8: 11.750 | N8: 0.975
A9: Итого: | B9: 565 | C9: =SUM(C3:C8) -> 20.20 | D9: =SUM(D3:D8) -> 20.70 | E9: 81.11 | F9: 595.68 | G9: 0.41 | H9: 22.99 | I9: 32.42 | J9: 64.06 | K9: 136.30 | L9: 244.82 | M9: 78.20 | N9: 6.67

Sheet Лист10
A1: Наименование блюд | B1: Выход,г | C1: Белки, г | D1: Жиры, г | E1: Углеводы, г | F1: Калорийность, ккал | G1: Витамин B1, мг | H1: Витамин С, мг | I1: Витамин А, мг | J1: Витамин Е, мг | K1: Ca, мг | L1: P, мг | M1: Mg, мг | N1: Fe, мг
A2: 4 день
A3: Тефтели мясные в сметанно-томатном соусе | B3: 60/40 | C3: 7.284 | D3: 11.940 | E3: 8.360 | F3: 124 | G3: 0.048 | H3: 0.276 | I3: 29.620 | J3: 0.421 | K3: 20.726 | L3: 80.202 | M3: 15.521 | N3: 0.640
A4: Макаронные изделия отварные с маслом сливочным | B4: 180/5 | C4: 5.10 | D4: 3.62 | E4: 31.96 | F4: 176.10 | G4: 0.06 | H4: 0.00 | I4: 12.00 | J4: 0.80 | K4: 11.91 | L4: 38.07 | M4: 8.62 | N4: 0.86
A5: Напиток из свежих фруктов (75С) | B5: 200 | C5: 0.34 | D5: 0.17 | E5: 11.48 | F5: 63.60 | G5: 0.02 | H5: 3.17 | I5: 0.00 | J5: 0.13 | K5: 16.67 | L5: 7.05 | M5: 7.78 | N5: 0.88
A6: Хлеб пшеничный | B6: 20 | C6: 1.52 | D6: 0.16 | E6: 9.84 | F6: 47.00 | G6: 0.02 | H6: 0.00 | I6: 0.00 | J6: 0.22 | K6: 4.00 | L6: 13.00 | M6: 2.80 | N6: 0.22
A7: Хлеб ржаной | B7: 20 | C7: 1.320 | D7: 0.240 | E7: 7.920 | F7: 40 | G7: 0.034 | H7: 0 | I7: 0 | J7: 0.280 | K7: 5.800 | L7: 30.000 | M7: 9.400 | N7: 0.780
A8: Итого: | B8: 525 | C8: =C3+C4+C5+C6+C7 -> 15.56 | D8: =D3+D4+D5+D6+D7 -> 16.13 | E8: 69.56 | F8: 450.29 | G8: 0.18 | H8: 3.45 | I8: 41.62 | J8: 1.85 | K8: 59.11 | L8: 168.32 | M8: 44.12 | N8: 3.38

Sheet Лист11
A1: Наименование блюд | B1: Выход,г | C1: Белки, г | D1: Жиры, г | E1: Углеводы, г | F1: Калорийность, ккал | G1: Витамин B1, мг | H1: Витамин С, мг | I1: Витамин А, мг | J1: Витамин Е, мг | K1: Ca, мг | L1: P, мг | M1: Mg, мг
A2: Салат из свежей капусты с морковью | B2: 60 | C2: 0.79 | D2: 1.95 | E2: 3.88 | F2: 36.24 | G2: 0.01 | H2: 10.26 | I2: 0.00 | J2: 5.03 | K2: 14.98 | L2: 16.98 | M2: 9.05
A3: Плов из говядины с рисом | B3: 50/150 | C3: 16.03 | D3: 18.16 | E3: 45.91 | F3: 415.89 | G3: 0.07 | H3: 1.80 | I3: 0.00 | J3: 4.00 | K3: 18.14 | L3: 242.92 | M3: 51.52
A4: Чай с сахаром,с яблоком | B4: 180/10/10 | C4: 0.11 | D4: 0.06 | E4: 10.990 | F4: 45 | G4: 0.003 | H4: 1.03 | J4: 0.02 | K4: 12.700 | L4: 3.9 | M4: 2.3
A5: Хлеб пшеничный | B5: 25 | C5: 1.900 | D5: 0.200 | E5: 12.300 | F5: 59 | G5: 0.028 | H5: 0 | I5: 0 | J5: 0.275 | K5: 5.000 | L5: 16.250 | M5: 3.500
A6: Хлеб ржаной | B6: 20 | C6: 1.320 | D6: 0.240 | E6: 7.920 | F6: 40 | G6: 0.034 | H6: 0 | I6: 0 | J6: 0.280 | K6: 5.800 | L6: 30.000 | M6: 9.400
A7: Итого: | B7: 505 | C7: =C2+C3+C4+C5+C6 -> 20.15 | D7: =D2+D3+D4+D5+D6 -> 20.61 | E7: 80.99 | F7: 595.53 | G7: 0.15 | H7: 13.08 | I7: 0.00 | J7: 9.61 | K7: 56.62 | L7: 310.05 | M7: 75.77

Sheet Лист12
A1: Наименование блюд | B1: Выход,г | C1: Белки, г | D1: Жиры, г | E1: Углеводы, г | F1: Калорийность, ккал | G1: Витамин B1, мг | H1: Витамин С, мг | I1: Витамин А, мг | J1: Витамин Е, мг | K1: Ca, мг | L1: P, мг | M1: Mg, мг | N1: Fe, мг
A2: 6 день
A3: Плоды и ягоды свежие (яблоки) | B3: 100 | C3: 0.40 | D3: 0.40 | E3: 9.80 | F3: 47.00 | G3: 0.03 | H3: 10.00 | J3: 0.20 | K3: 16.00 | L3: 11.00 | M3: 9.00 | N3: 2.20
A4: Котлеты говяжьи | B4: 90 | C4: 10.18 | D4: 13.25 | E4: 11.77 | F4: 183.40 | G4: 0.05 | H4: 0.00 | I4: 0.00 | J4: 3.11 | K4: 9.38 | L4: 150.08 | M4: 27.54 | N4: 2.41
A5: Каша гречневая рассыпчатая с маслом сливочным | B5: 150/5 | C5: 4.61 | D5: 6.32 | E5: 27.79 | F5: 207.00 | G5: 0.21 | H5: 0.00 | I5: 20.00 | J5: 0.45 | K5: 25.19 | L5: 208.85 | M5: 140.52 | N5: 4.72
A6: Чай с сахаром | B6: 190/10 | C6: 0.070 | D6: 0.020 | E6: 10.000 | F6: 40 | H6: 0.030 | K6: 10.950 | L6: 2.800 | M6: 1.400 | N6: 0.260
A7: Хлеб пшеничный | B7: 25 | C7: 1.900 | D7: 0.200 | E7: 12.300 | F7: 59 | G7: 0.028 | H7: 0 | I7: 0 | J7: 0.275 | K7: 5.000 | L7: 16.250 | M7: 3.500 | N7: 0.275
A8: Хлеб ржаной | B8: 20 | C8: 1.320 | D8: 0.240 | E8: 7.920 | F8: 40 | G8: 0.034 | H8: 0 | I8: 0 | J8: 0.280 | K8: 5.800 | L8: 30.000 | M8: 9.400 | N8: 0.780
A9: Итого: | B9: 590 | C9: =SUM(C3:C8) -> 18.48 | D9: =SUM(D3:D8) -> 20.43 | E9: 79.58 | F9: 575.75 | G9: 0.36 | H9: 10.03 | I9: 20.00 | J9: 4.32 | K9: 72.32 | L9: 418.98 | M9: 191.36 | N9: 10.65
